Workbook

Sheet Database
B2: Contributions to a Fund
M3: 500 | O3: 500
B4: Env. Name | D4: Total L.Y. 2018 (Fund 1) | E4: Total L.Y. 2018 (Total Funds) | F4: 2 Yrs. Ago 2017 (Fund 1) | G4: 2 Yrs. Ago 2017 (Total Funds) | H4: 3 Yrs. Ago 2016 (Fund 1) | I4: 3 Yrs. Ago 2016 (Total Funds) | J4: Age (Eldest Age) | K4: Gave to Fund 1 in 2018 = 1 | L4: Var 2018-2017 (Fund 1) | M4: ="Variance equal or greater than $"&M3&" or equal or less than -$"&M3&" = 1" -> Variance equal or greater than $500 or equal or less than -$500 = 1 | N4: Var 2018-2017 (Total Funds) | O4: ="Variance equal or greater than $"&O3&" or equal or less than -$"&O3&" = 1" -> Variance equal or greater than $500 or equal or less than -$500 = 1
B5: 0 | D5: 0 | E5: 0 | F5: 0 | G5: 0 | H5: 0 | I5: 0 | J5: 8 | K5: =IF(D5>0.5,1,0) -> 0 | L5: =+D5-F5 -> 0 | M5: =IF(OR((L5>=M$3),(L5<=-M$3)),1,0) -> 0 | N5: =+E5-G5 -> 0 | O5: =IF(OR((N5>=O$3),(N5<=-O$3)),1,0) -> 0
B6: 0 | D6: 0 | E6: 0 | F6: 0 | G6: 0 | H6: 0 | I6: 0 | J6: 7 | K6: =IF(D6>0.5,1,0) -> 0 | L6: =+D6-F6 -> 0 | M6: =IF(OR((L6>=M$3),(L6<=-M$3)),1,0) -> 0 | N6: =+E6-G6 -> 0 | O6: =IF(OR((N6>=O$3),(N6<=-O$3)),1,0) -> 0
B7: 0 | D7: 0 | E7: 0 | F7: 0 | G7: 0 | H7: 0 | I7: 0 | K7: 0 | L7: 0 | M7: =IF(OR((L7>=M$3),(L7<=-M$3)),1,0) -> 0 | N7: 0 | O7: 0
B8: 0 | D8: 0 | E8: 0 | F8: 0 | G8: 0 | H8: 0 | I8: 0 | J8: 8 | K8: 0 | L8: 0 | M8: 0 | N8: 0 | O8: 0
B9: 0 | D9: 0 | E9: 0 | F9: 0 | G9: 0 | H9: 0 | I9: 0 | J9: 8 | K9: 0 | L9: 0 | M9: 0 | N9: 0 | O9: 0
B10: 0 | D10: 0 | E10: 0 | F10: 0 | G10: 0 | H10: 0 | I10: 0 | J10: 44 | K10: 0 | L10: 0 | M10: 0 | N10: 0 | O10: 0
B11: 0 | D11: 0 | E11: 0 | F11: 0 | G11: 0 | H11: 0 | I11: 0 | K11: 0 | L11: 0 | M11: 0 | N11: 0 | O11: 0
B12: 0 | D12: 0 | E12: 0 | F12: 0 | G12: 0 | H12: 0 | I12: 0 | J12: 9 | K12: 0 | L12: 0 | M12: 0 | N12: 0 | O12: 0
B13: 0 | D13: 0 | E13: 0 | F13: 0 | G13: 0 | H13: 0 | I13: 0 | K13: 0 | L13: 0 | M13: 0 | N13: 0 | O13: 0
B14: 0 | D14: 0 | E14: 0 | F14: 0 | G14: 0 | H14: 0 | I14: 0 | J14: 8 | K14: 0 | L14: 0 | M14: 0 | N14: 0 | O14: 0
B15: 0 | D15: 0 | E15: 0 | F15: 0 | G15: 0 | H15: 0 | I15: 0 | J15: 8 | K15: 0 | L15: 0 | M15: 0 | N15: 0 | O15: 0
B16: 0 | D16: 0 | E16: 0 | F16: 0 | G16: 0 | H16: 0 | I16: 0 | J16: 18 | K16: 0 | L16: 0 | M16: 0 | N16: 0 | O16: 0
B17: 0 | D17: 0 | E17: 0 | F17: 0 | G17: 0 | H17: 0 | I17: 0 | J17: 26 | K17: 0 | L17: 0 | M17: 0 | N17: 0 | O17: 0
B18: 0 | D18: 0 | E18: 0 | F18: 0 | G18: 0 | H18: 0 | I18: 0 | J18: 14 | K18: 0 | L18: 0 | M18: 0 | N18: 0 | O18: 0
B19: 0 | D19: 0 | E19: 0 | F19: 0 | G19: 0 | H19: 0 | I19: 0 | J19: 26 | K19: 0 | L19: 0 | M19: 0 | N19: 0 | O19: 0
B20: 0 | D20: 0 | E20: 0 | F20: 0 | G20: 0 | H20: 0 | I20: 0 | J20: 27 | K20: 0 | L20: 0 | M20: 0 | N20: 0 | O20: 0
B21: 0 | D21: 0 | E21: 0 | F21: 0 | G21: 0 | H21: 0 | I21: 0 | J21: 45 | K21: 0 | L21: 0 | M21: 0 | N21: 0 | O21: 0
B22: 0 | D22: 0 | E22: 0 | F22: 0 | G22: 0 | H22: 0 | I22: 0 | J22: 8 | K22: 0 | L22: 0 | M22: 0 | N22: 0 | O22: 0
B23: 0 | D23: 0 | E23: 0 | F23: 0 | G23: 0 | H23: 0 | I23: 0 | J23: 46 | K23: 0 | L23: 0 | M23: 0 | N23: 0 | O23: 0
B24: 0 | D24: 0 | E24: 0 | F24: 0 | G24: 0 | H24: 0 | I24: 0 | J24: 40 | K24: 0 | L24: 0 | M24: 0 | N24: 0 | O24: 0
B25: 0 | D25: 0 | E25: 0 | F25: 0 | G25: 0 | H25: 0 | I25: 0 | J25: 29 | K25: 0 | L25: 0 | M25: 0 | N25: 0 | O25: 0
B26: 0 | D26: 0 | E26: 0 | F26: 0 | G26: 0 | H26: 0 | I26: 0 | J26: 14 | K26: 0 | L26: 0 | M26: 0 | N26: 0 | O26: 0
B27: 0 | D27: 0 | E27: 0 | F27: 0 | G27: 0 | H27: 0 | I27: 0 | J27: 48 | K27: 0 | L27: 0 | M27: 0 | N27: 0 | O27: 0
B28: 0 | D28: 0 | E28: 0 | F28: 0 | G28: 0 | H28: 0 | I28: 0 | J28: 67 | K28: 0 | L28: 0 | M28: 0 | N28: 0 | O28: 0
B29: 0 | D29: 0 | E29: 0 | F29: 0 | G29: 0 | H29: 0 | I29: 0 | J29: 26 | K29: 0 | L29: 0 | M29: 0 | N29: 0 | O29: 0
B30: 0 | D30: 0 | E30: 0 | F30: 0 | G30: 0 | H30: 0 | I30: 0 | J30: 15 | K30: 0 | L30: 0 | M30: 0 | N30: 0 | O30: 0
B31: 0 | D31: 0 | E31: 0 | F31: 0 | G31: 0 | H31: 0 | I31: 0 | J31: 18 | K31: 0 | L31: 0 | M31: 0 | N31: 0 | O31: 0
B32: 0 | D32: 0 | E32: 0 | F32: 0 | G32: 0 | H32: 0 | I32: 0 | J32: 9 | K32: 0 | L32: 0 | M32: 0 | N32: 0 | O32: 0
B33: 0 | D33: 0 | E33: 0 | F33: 0 | G33: 0 | H33: 0 | I33: 0 | J33: 9 | K33: 0 | L33: 0 | M33: 0 | N33: 0 | O33: 0
B34: 0 | D34: 0 | E34: 0 | F34: 0 | G34: 0 | H34: 0 | I34: 0 | J34: 85 | K34: 0 | L34: 0 | M34: 0 | N34: 0 | O34: 0
B35: 0 | D35: 0 | E35: 0 | F35: 0 | G35: 0 | H35: 0 | I35: 0 | J35: 15 | K35: 0 | L35: 0 | M35: 0 | N35: 0 | O35: 0
B36: 0 | D36: 0 | E36: 0 | F36: 0 | G36: 0 | H36: 0 | I36: 0 | J36: 18 | K36: 0 | L36: 0 | M36: 0 | N36: 0 | O36: 0
B37: 0 | D37: 0 | E37: 0 | F37: 0 | G37: 0 | H37: 0 | I37: 0 | J37: 9 | K37: 0 | L37: 0 | M37: 0 | N37: 0 | O37: 0
B38: 0 | D38: 0 | E38: 0 | F38: 0 | G38: 0 | H38: 0 | I38: 0 | J38: 23 | K38: 0 | L38: 0 | M38: 0 | N38: 0 | O38: 0
B39: 0 | D39: 0 | E39: 0 | F39: 0 | G39: 0 | H39: 0 | I39: 0 | K39: 0 | L39: 0 | M39: 0 | N39: 0 | O39: 0
B40: 0 | D40: 0 | E40: 0 | F40: 0 | G40: 0 | H40: 0 | I40: 0 | K40: 0 | L40: 0 | M40: 0 | N40: 0 | O40: 0
B41: 0 | D41: 0 | E41: 0 | F41: 0 | G41: 0 | H41: 0 | I41: 0 | J41: 18 | K41: 0 | L41: 0 | M41: 0 | N41: 0 | O41: 0
B42: 0 | D42: 0 | E42: 0 | F42: 0 | G42: 0 | H42: 0 | I42: 0 | J42: 27 | K42: 0 | L42: 0 | M42: 0 | N42: 0 | O42: 0
B43: 0 | D43: 0 | E43: 0 | F43: 0 | G43: 0 | H43: 0 | I43: 0 | K43: 0 | L43: 0 | M43: 0 | N43: 0 | O43: 0
B44: 0 | D44: 0 | E44: 0 | F44: 0 | G44: 0 | H44: 0 | I44: 0 | K44: 0 | L44: 0 | M44: 0 | N44: 0 | O44: 0
B45: 0 | D45: 0 | E45: 0 | F45: 0 | G45: 0 | H45: 0 | I45: 0 | J45: 9 | K45: 0 | L45: 0 | M45: 0 | N45: 0 | O45: 0
B46: 0 | D46: 0 | E46: 0 | F46: 0 | G46: 0 | H46: 0 | I46: 0 | K46: 0 | L46: 0 | M46: 0 | N46: 0 | O46: 0
B47: 0 | D47: 0 | E47: 0 | F47: 0 | G47: 0 | H47: 0 | I47: 0 | J47: 43 | K47: 0 | L47: 0 | M47: 0 | N47: 0 | O47: 0
B48: 0 | D48: 0 | E48: 0 | F48: 0 | G48: 0 | H48: 0 | I48: 0 | J48: 14 | K48: 0 | L48: 0 | M48: 0 | N48: 0 | O48: 0
B49: 0 | D49: 0 | E49: 0 | F49: 0 | G49: 0 | H49: 0 | I49: 0 | J49: 21 | K49: 0 | L49: 0 | M49: 0 | N49: 0 | O49: 0
B50: 0 | D50: 0 | E50: 0 | F50: 0 | G50: 0 | H50: 0 | I50: 0 | J50: 23 | K50: 0 | L50: 0 | M50: 0 | N50: 0 | O50: 0
B51: 0 | D51: 0 | E51: 0 | F51: 0 | G51: 0 | H51: 0 | I51: 0 | J51: 19 | K51: 0 | L51: 0 | M51: 0 | N51: 0 | O51: 0
B52: 0 | D52: 0 | E52: 0 | F52: 0 | G52: 0 | H52: 0 | I52: 0 | K52: 0 | L52: 0 | M52: 0 | N52: 0 | O52: 0
B53: 0 | D53: 0 | E53: 0 | F53: 0 | G53: 0 | H53: 0 | I53: 0 | K53: 0 | L53: 0 | M53: 0 | N53: 0 | O53: 0
B54: 0 | D54: 0 | E54: 0 | F54: 0 | G54: 0 | H54: 0 | I54: 0 | J54: 14 | K54: 0 | L54: 0 | M54: 0 | N54: 0 | O54: 0
B55: 0 | D55: 0 | E55: 0 | F55: 0 | G55: 0 | H55: 0 | I55: 0 | J55: 14 | K55: 0 | L55: 0 | M55: 0 | N55: 0 | O55: 0
B56: 0 | D56: 0 | E56: 0 | F56: 0 | G56: 0 | H56: 0 | I56: 0 | K56: 0 | L56: 0 | M56: 0 | N56: 0 | O56: 0
B57: 0 | D57: 0 | E57: 0 | F57: 0 | G57: 0 | H57: 0 | I57: 0 | K57: 0 | L57: 0 | M57: 0 | N57: 0 | O57: 0
B58: 0 | D58: 0 | E58: 0 | F58: 0 | G58: 0 | H58: 0 | I58: 0 | J58: 11 | K58: 0 | L58: 0 | M58: 0 | N58: 0 | O58: 0
B59: 0 | D59: 0 | E59: 0 | F59: 0 | G59: 0 | H59: 0 | I59: 0 | J59: 26 | K59: 0 | L59: 0 | M59: 0 | N59: 0 | O59: 0
B60: 0 | D60: 0 | E60: 0 | F60: 0 | G60: 0 | H60: 0 | I60: 0 | J60: 17 | K60: 0 | L60: 0 | M60: 0 | N60: 0 | O60: 0
B61: 0 | D61: 0 | E61: 0 | F61: 0 | G61: 0 | H61: 0 | I61: 0 | J61: 20 | K61: 0 | L61: 0 | M61: 0 | N61: 0 | O61: 0
B62: 0 | D62: 0 | E62: 0 | F62: 0 | G62: 0 | H62: 0 | I62: 0 | J62: 18 | K62: 0 | L62: 0 | M62: 0 | N62: 0 | O62: 0
B63: 0 | D63: 0 | E63: 0 | F63: 0 | G63: 0 | H63: 0 | I63: 0 | J63: 13 | K63: 0 | L63: 0 | M63: 0 | N63: 0 | O63: 0
B64: 0 | D64: 0 | E64: 0 | F64: 0 | G64: 0 | H64: 0 | I64: 0 | J64: 31 | K64: 0 | L64: 0 | M64: 0 | N64: 0 | O64: 0
B65: 0 | D65: 0 | E65: 0 | F65: 0 | G65: 0 | H65: 0 | I65: 0 | J65: 34 | K65: 0 | L65: 0 | M65: 0 | N65: 0 | O65: 0
B66: 0 | D66: 0 | E66: 0 | F66: 0 | G66: 0 | H66: 0 | I66: 0 | J66: 27 | K66: 0 | L66: 0 | M66: 0 | N66: 0 | O66: 0
B67: 0 | D67: 0 | E67: 0 | F67: 0 | G67: 0 | H67: 0 | I67: 0 | J67: 23 | K67: 0 | L67: 0 | M67: 0 | N67: 0 | O67: 0
B68: 0 | D68: 0 | E68: 0 | F68: 0 | G68: 0 | H68: 0 | I68: 0 | K68: 0 | L68: 0 | M68: 0 | N68: 0 | O68: 0
B69: 0 | D69: 0 | E69: 0 | F69: 0 | G69: 0 | H69: 0 | I69: 0 | J69: 16 | K69: 0 | L69: 0 | M69: 0 | N69: 0 | O69: 0
B70: 0 | D70: 0 | E70: 0 | F70: 0 | G70: 0 | H70: 0 | I70: 0 | J70: 10 | K70: =IF(D70>0.5,1,0) -> 0 | L70: =+D70-F70 -> 0 | M70: 0 | N70: =+E70-G70 -> 0 | O70: 0
B71: 0 | D71: 0 | E71: 0 | F71: 0 | G71: 0 | H71: 0 | I71: 0 | J71: 1918 | K71: 0 | L71: 0 | M71: =IF(OR((L71>=M$3),(L71<=-M$3)),1,0) -> 0 | N71: 0 | O71: 0
B72: 0 | D72: 0 | E72: 0 | F72: 0 | G72: 0 | H72: 0 | I72: 0 | J72: 23 | K72: 0 | L72: 0 | M72: 0 | N72: 0 | O72: 0
B73: 0 | D73: 0 | E73: 0 | F73: 0 | G73: 0 | H73: 0 | I73: 0 | J73: 32 | K73: 0 | L73: 0 | M73: 0 | N73: 0 | O73: 0
B74: 0 | D74: 0 | E74: 0 | F74: 0 | G74: 0 | H74: 0 | I74: 0 | J74: 18 | K74: 0 | L74: 0 | M74: 0 | N74: 0 | O74: 0
B75: 0 | D75: 0 | E75: 0 | F75: 0 | G75: 0 | H75: 0 | I75: 0 | J75: 19 | K75: 0 | L75: 0 | M75: 0 | N75: 0 | O75: 0
B76: 0 | D76: 0 | E76: 0 | F76: 0 | G76: 0 | H76: 0 | I76: 0 | J76: 25 | K76: 0 | L76: 0 | M76: 0 | N76: 0 | O76: 0
B77: 0 | D77: 0 | E77: 0 | F77: 0 | G77: 0 | H77: 0 | I77: 0 | J77: 16 | K77: 0 | L77: 0 | M77: 0 | N77: 0 | O77: 0
B78: 0 | D78: 0 | E78: 0 | F78: 0 | G78: 0 | H78: 0 | I78: 0 | J78: 22 | K78: 0 | L78: 0 | M78: 0 | N78: 0 | O78: 0
B79: 0 | D79: 0 | E79: 0 | F79: 0 | G79: 0 | H79: 0 | I79: 0 | J79: 17 | K79: 0 | L79: 0 | M79: 0 | N79: 0 | O79: 0
B80: 0 | D80: 0 | E80: 0 | F80: 0 | G80: 0 | H80: 0 | I80: 0 | J80: 15 | K80: 0 | L80: 0 | M80: 0 | N80: 0 | O80: 0
B81: 0 | D81: 0 | E81: 0 | F81: 0 | G81: 0 | H81: 0 | I81: 0 | J81: 21 | K81: 0 | L81: 0 | M81: 0 | N81: 0 | O81: 0
B82: 0 | D82: 0 | E82: 0 | F82: 0 | G82: 0 | H82: 0 | I82: 0 | J82: 19 | K82: 0 | L82: 0 | M82: 0 | N82: 0 | O82: 0
B83: 0 | D83: 0 | E83: 0 | F83: 0 | G83: 0 | H83: 0 | I83: 0 | J83: 16 | K83: 0 | L83: 0 | M83: 0 | N83: 0 | O83: 0
B84: 0 | D84: 0 | E84: 0 | F84: 0 | G84: 0 | H84: 0 | I84: 0 | J84: 6 | K84: 0 | L84: 0 | M84: 0 | N84: 0 | O84: 0
B85: 0 | D85: 0 | E85: 0 | F85: 0 | G85: 0 | H85: 0 | I85: 0 | J85: 10 | K85: 0 | L85: 0 | M85: 0 | N85: 0 | O85: 0
B86: 0 | D86: 0 | E86: 0 | F86: 0 | G86: 0 | H86: 0 | I86: 0 | J86: 18 | K86: 0 | L86: 0 | M86: 0 | N86: 0 | O86: 0
B87: 0 | D87: 0 | E87: 0 | F87: 0 | G87: 0 | H87: 0 | I87: 0 | K87: 0 | L87: 0 | M87: 0 | N87: 0 | O87: 0
B88: 0 | D88: 0 | E88: 0 | F88: 0 | G88: 0 | H88: 0 | I88: 0 | J88: 18 | K88: 0 | L88: 0 | M88: 0 | N88: 0 | O88: 0
B89: 0 | D89: 0 | E89: 0 | F89: 0 | G89: 0 | H89: 0 | I89: 0 | K89: 0 | L89: 0 | M89: 0 | N89: 0 | O89: 0
B90: 0 | D90: 0 | E90: 0 | F90: 0 | G90: 0 | H90: 0 | I90: 0 | J90: 8 | K90: 0 | L90: 0 | M90: 0 | N90: 0 | O90: 0
B91: 0 | D91: 0 | E91: 0 | F91: 0 | G91: 0 | H91: 0 | I91: 0 | K91: 0 | L91: 0 | M91: 0 | N91: 0 | O91: 0
B92: 0 | D92: 0 | E92: 0 | F92: 0 | G92: 0 | H92: 0 | I92: 0 | K92: 0 | L92: 0 | M92: 0 | N92: 0 | O92: 0
B93: 0 | D93: 0 | E93: 0 | F93: 0 | G93: 0 | H93: 0 | I93: 0 | K93: 0 | L93: 0 | M93: 0 | N93: 0 | O93: 0
B94: 0 | D94: 0 | E94: 0 | F94: 0 | G94: 0 | H94: 0 | I94: 0 | J94: 7 | K94: 0 | L94: 0 | M94: 0 | N94: 0 | O94: 0
B95: 0 | D95: 0 | E95: 0 | F95: 0 | G95: 0 | H95: 0 | I95: 0 | K95: 0 | L95: 0 | M95: 0 | N95: 0 | O95: 0
B96: 0 | D96: 0 | E96: 0 | F96: 0 | G96: 0 | H96: 0 | I96: 0 | K96: 0 | L96: 0 | M96: 0 | N96: 0 | O96: 0
B97: 0 | D97: 0 | E97: 0 | F97: 0 | G97: 0 | H97: 0 | I97: 0 | J97: 21 | K97: 0 | L97: 0 | M97: 0 | N97: 0 | O97: 0
B98: 0 | D98: 0 | E98: 0 | F98: 0 | G98: 0 | H98: 0 | I98: 0 | K98: 0 | L98: 0 | M98: 0 | N98: 0 | O98: 0
B99: 0 | D99: 0 | E99: 0 | F99: 0 | G99: 0 | H99: 0 | I99: 0 | J99: 45 | K99: 0 | L99: 0 | M99: 0 | N99: 0 | O99: 0
B100: 0 | D100: 0 | E100: 0 | F100: 0 | G100: 0 | H100: 0 | I100: 0 | J100: 7 | K100: 0 | L100: 0 | M100: 0 | N100: 0 | O100: 0
B101: 0 | D101: 0 | E101: 0 | F101: 0 | G101: 0 | H101: 0 | I101: 0 | J101: 13 | K101: 0 | L101: 0 | M101: 0 | N101: 0 | O101: 0
B102: 0 | D102: 0 | E102: 0 | F102: 0 | G102: 0 | H102: 0 | I102: 0 | J102: 11 | K102: 0 | L102: 0 | M102: 0 | N102: 0 | O102: 0
B103: 0 | D103: 0 | E103: 0 | F103: 0 | G103: 0 | H103: 0 | I103: 0 | J103: 26 | K103: 0 | L103: 0 | M103: 0 | N103: 0 | O103: 0
B104: 0 | D104: 0 | E104: 0 | F104: 0 | G104: 0 | H104: 0 | I104: 0 | J104: 9 | K104: 0 | L104: 0 | M104: 0 | N104: 0 | O104: 0
B105: 0 | D105: 0 | E105: 0 | F105: 0 | G105: 0 | H105: 0 | I105: 0 | J105: 7 | K105: 0 | L105: 0 | M105: 0 | N105: 0 | O105: 0
B106: 0 | D106: 0 | E106: 0 | F106: 0 | G106: 0 | H106: 0 | I106: 0 | J106: 28 | K106: 0 | L106: 0 | M106: 0 | N106: 0 | O106: 0
B107: 0 | D107: 0 | E107: 0 | F107: 0 | G107: 0 | H107: 0 | I107: 0 | J107: 29 | K107: 0 | L107: 0 | M107: 0 | N107: 0 | O107: 0
B108: 0 | D108: 0 | E108: 0 | F108: 0 | G108: 0 | H108: 0 | I108: 0 | J108: 11 | K108: 0 | L108: 0 | M108: 0 | N108: 0 | O108: 0
B109: 0 | D109: 0 | E109: 0 | F109: 0 | G109: 0 | H109: 0 | I109: 0 | J109: 23 | K109: 0 | L109: 0 | M109: 0 | N109: 0 | O109: 0
B110: 0 | D110: 0 | E110: 0 | F110: 0 | G110: 0 | H110: 0 | I110: 0 | J110: 22 | K110: 0 | L110: 0 | M110: 0 | N110: 0 | O110: 0
B111: 0 | D111: 0 | E111: 0 | F111: 0 | G111: 0 | H111: 0 | I111: 0 | J111: 58 | K111: 0 | L111: 0 | M111: 0 | N111: 0 | O111: 0
B112: 0 | D112: 0 | E112: 0 | F112: 0 | G112: 0 | H112: 0 | I112: 0 | J112: 8 | K112: 0 | L112: 0 | M112: 0 | N112: 0 | O112: 0
B113: 0 | D113: 0 | E113: 0 | F113: 0 | G113: 0 | H113: 0 | I113: 0 | J113: 49 | K113: 0 | L113: 0 | M113: 0 | N113: 0 | O113: 0
B114: 0 | D114: 0 | E114: 0 | F114: 0 | G114: 0 | H114: 0 | I114: 0 | J114: 37 | K114: 0 | L114: 0 | M114: 0 | N114: 0 | O114: 0
B115: 0 | D115: 0 | E115: 0 | F115: 0 | G115: 0 | H115: 0 | I115: 0 | J115: 103 | K115: 0 | L115: 0 | M115: 0 | N115: 0 | O115: 0
B116: 0 | D116: 0 | E116: 0 | F116: 0 | G116: 0 | H116: 0 | I116: 0 | K116: 0 | L116: 0 | M116: 0 | N116: 0 | O116: 0
B117: 0 | D117: 0 | E117: 0 | F117: 0 | G117: 0 | H117: 0 | I117: 0 | K117: 0 | L117: 0 | M117: 0 | N117: 0 | O117: 0
B118: 0 | D118: 0 | E118: 0 | F118: 0 | G118: 0 | H118: 0 | I118: 0 | J118: 19 | K118: 0 | L118: 0 | M118: 0 | N118: 0 | O118: 0
B119: 0 | D119: 0 | E119: 0 | F119: 0 | G119: 0 | H119: 0 | I119: 0 | K119: 0 | L119: 0 | M119: 0 | N119: 0 | O119: 0
B120: 0 | D120: 0 | E120: 0 | F120: 0 | G120: 0 | H120: 0 | I120: 0 | J120: 15 | K120: 0 | L120: 0 | M120: 0 | N120: 0 | O120: 0
B121: 0 | D121: 0 | E121: 0 | F121: 0 | G121: 0 | H121: 0 | I121: 0 | J121: 11 | K121: 0 | L121: 0 | M121: 0 | N121: 0 | O121: 0
B122: 0 | D122: 0 | E122: 0 | F122: 0 | G122: 0 | H122: 0 | I122: 0 | J122: 11 | K122: 0 | L122: 0 | M122: 0 | N122: 0 | O122: 0
B123: 0 | D123: 0 | E123: 0 | F123: 0 | G123: 0 | H123: 0 | I123: 0 | J123: 16 | K123: 0 | L123: 0 | M123: 0 | N123: 0 | O123: 0
B124: 0 | D124: 0 | E124: 0 | F124: 0 | G124: 0 | H124: 0 | I124: 0 | J124: 14 | K124: 0 | L124: 0 | M124: 0 | N124: 0 | O124: 0
B125: 0 | D125: 0 | E125: 0 | F125: 0 | G125: 0 | H125: 0 | I125: 0 | K125: 0 | L125: 0 | M125: 0 | N125: 0 | O125: 0
B126: 0 | D126: 0 | E126: 0 | F126: 0 | G126: 0 | H126: 0 | I126: 0 | J126: 21 | K126: 0 | L126: 0 | M126: 0 | N126: 0 | O126: 0
B127: 0 | D127: 0 | E127: 0 | F127: 0 | G127: 0 | H127: 0 | I127: 0 | J127: 13 | K127: 0 | L127: 0 | M127: 0 | N127: 0 | O127: 0
B128: 0 | D128: 0 | E128: 0 | F128: 0 | G128: 0 | H128: 0 | I128: 0 | J128: 11 | K128: 0 | L128: 0 | M128: 0 | N128: 0 | O128: 0
B129: 0 | D129: 0 | E129: 0 | F129: 0 | G129: 0 | H129: 0 | I129: 0 | J129: 11 | K129: 0 | L129: 0 | M129: 0 | N129: 0 | O129: 0
B130: 0 | D130: 0 | E130: 0 | F130: 0 | G130: 0 | H130: 0 | I130: 0 | K130: 0 | L130: 0 | M130: 0 | N130: 0 | O130: 0
B131: 0 | D131: 0 | E131: 0 | F131: 0 | G131: 0 | H131: 0 | I131: 0 | J131: 26 | K131: 0 | L131: 0 | M131: 0 | N131: 0 | O131: 0
B132: 0 | D132: 0 | E132: 0 | F132: 0 | G132: 0 | H132: 0 | I132: 0 | J132: 18 | K132: 0 | L132: 0 | M132: 0 | N132: 0 | O132: 0
B133: 0 | D133: 0 | E133: 0 | F133: 0 | G133: 0 | H133: 0 | I133: 0 | J133: 11 | K133: 0 | L133: 0 | M133: 0 | N133: 0 | O133: 0
B134: 0 | D134: 0 | E134: 0 | F134: 0 | G134: 0 | H134: 0 | I134: 0 | J134: 10 | K134: =IF(D134>0.5,1,0) -> 0 | L134: =+D134-F134 -> 0 | M134: 0 | N134: =+E134-G134 -> 0 | O134: 0
B135: 0 | D135: 0 | E135: 0 | F135: 0 | G135: 0 | H135: 0 | I135: 0 | K135: 0 | L135: 0 | M135: =IF(OR((L135>=M$3),(L135<=-M$3)),1,0) -> 0 | N135: 0 | O135: 0
B136: 0 | D136: 0 | E136: 0 | F136: 0 | G136: 0 | H136: 0 | I136: 0 | J136: 11 | K136: 0 | L136: 0 | M136: 0 | N136: 0 | O136: 0
B137: 0 | D137: 0 | E137: 0 | F137: 0 | G137: 0 | H137: 0 | I137: 0 | K137: 0 | L137: 0 | M137: 0 | N137: 0 | O137: 0
B138: 0 | D138: 0 | E138: 0 | F138: 0 | G138: 0 | H138: 0 | I138: 0 | J138: 17 | K138: 0 | L138: 0 | M138: 0 | N138: 0 | O138: 0
B139: 0 | D139: 0 | E139: 0 | F139: 0 | G139: 0 | H139: 0 | I139: 0 | J139: 20 | K139: 0 | L139: 0 | M139: 0 | N139: 0 | O139: 0
B140: 0 | D140: 0 | E140: 0 | F140: 0 | G140: 0 | H140: 0 | I140: 0 | K140: 0 | L140: 0 | M140: 0 | N140: 0 | O140: 0
B141: 0 | D141: 0 | E141: 0 | F141: 0 | G141: 0 | H141: 0 | I141: 0 | K141: 0 | L141: 0 | M141: 0 | N141: 0 | O141: 0
B142: 0 | D142: 0 | E142: 0 | F142: 0 | G142: 0 | H142: 0 | I142: 0 | J142: 19 | K142: 0 | L142: 0 | M142: 0 | N142: 0 | O142: 0
B143: 0 | D143: 0 | E143: 0 | F143: 0 | G143: 0 | H143: 0 | I143: 0 | J143: 15 | K143: 0 | L143: 0 | M143: 0 | N143: 0 | O143: 0
B144: 0 | D144: 0 | E144: 0 | F144: 0 | G144: 0 | H144: 0 | I144: 0 | J144: 40 | K144: 0 | L144: 0 | M144: 0 | N144: 0 | O144: 0
B145: 0 | D145: 0 | E145: 0 | F145: 0 | G145: 0 | H145: 0 | I145: 0 | J145: 14 | K145: 0 | L145: 0 | M145: 0 | N145: 0 | O145: 0
B146: 0 | D146: 0 | E146: 0 | F146: 0 | G146: 0 | H146: 0 | I146: 0 | K146: 0 | L146: 0 | M146: 0 | N146: 0 | O146: 0
B147: 0 | D147: 0 | E147: 0 | F147: 0 | G147: 0 | H147: 0 | I147: 0 | K147: 0 | L147: 0 | M147: 0 | N147: 0 | O147: 0
B148: 0 | D148: 0 | E148: 0 | F148: 0 | G148: 0 | H148: 0 | I148: 0 | K148: 0 | L148: 0 | M148: 0 | N148: 0 | O148: 0
B149: 0 | D149: 0 | E149: 0 | F149: 0 | G149: 0 | H149: 0 | I149: 0 | K149: 0 | L149: 0 | M149: 0 | N149: 0 | O149: 0
B150: 0 | D150: 0 | E150: 0 | F150: 0 | G150: 0 | H150: 0 | I150: 0 | J150: 22 | K150: 0 | L150: 0 | M150: 0 | N150: 0 | O150: 0
B151: 0 | D151: 0 | E151: 0 | F151: 0 | G151: 0 | H151: 0 | I151: 0 | K151: 0 | L151: 0 | M151: 0 | N151: 0 | O151: 0
B152: 0 | D152: 0 | E152: 0 | F152: 0 | G152: 0 | H152: 0 | I152: 0 | J152: 22 | K152: 0 | L152: 0 | M152: 0 | N152: 0 | O152: 0
B153: 0 | D153: 0 | E153: 0 | F153: 0 | G153: 0 | H153: 0 | I153: 0 | J153: 19 | K153: 0 | L153: 0 | M153: 0 | N153: 0 | O153: 0
B154: 0 | D154: 0 | E154: 0 | F154: 0 | G154: 0 | H154: 0 | I154: 0 | J154: 12 | K154: 0 | L154: 0 | M154: 0 | N154: 0 | O154: 0
B155: 0 | D155: 0 | E155: 0 | F155: 0 | G155: 0 | H155: 0 | I155: 0 | J155: 17 | K155: 0 | L155: 0 | M155: 0 | N155: 0 | O155: 0
B156: 0 | D156: 0 | E156: 0 | F156: 0 | G156: 0 | H156: 0 | I156: 0 | J156: 23 | K156: 0 | L156: 0 | M156: 0 | N156: 0 | O156: 0
B157: 0 | D157: 0 | E157: 0 | F157: 0 | G157: 0 | H157: 0 | I157: 0 | J157: 20 | K157: 0 | L157: 0 | M157: 0 | N157: 0 | O157: 0
B158: 0 | D158: 0 | E158: 0 | F158: 0 | G158: 0 | H158: 0 | I158: 0 | K158: 0 | L158: 0 | M158: 0 | N158: 0 | O158: 0
B159: 0 | D159: 0 | E159: 0 | F159: 0 | G159: 0 | H159: 0 | I159: 0 | J159: 11 | K159: 0 | L159: 0 | M159: 0 | N159: 0 | O159: 0
B160: 0 | D160: 0 | E160: 0 | F160: 0 | G160: 0 | H160: 0 | I160: 0 | J160: 21 | K160: 0 | L160: 0 | M160: 0 | N160: 0 | O160: 0
B161: 0 | D161: 0 | E161: 0 | F161: 0 | G161: 0 | H161: 0 | I161: 0 | J161: 21 | K161: 0 | L161: 0 | M161: 0 | N161: 0 | O161: 0
B162: 0 | D162: 0 | E162: 0 | F162: 0 | G162: 0 | H162: 0 | I162: 0 | J162: 25 | K162: 0 | L162: 0 | M162: 0 | N162: 0 | O162: 0
B163: 0 | D163: 0 | E163: 0 | F163: 0 | G163: 0 | H163: 0 | I163: 0 | J163: 11 | K163: 0 | L163: 0 | M163: 0 | N163: 0 | O163: 0
B164: 0 | D164: 0 | E164: 0 | F164: 0 | G164: 0 | H164: 0 | I164: 0 | J164: 13 | K164: 0 | L164: 0 | M164: 0 | N164: 0 | O164: 0
B165: 0 | D165: 0 | E165: 0 | F165: 0 | G165: 0 | H165: 0 | I165: 0 | K165: 0 | L165: 0 | M165: 0 | N165: 0 | O165: 0
B166: 0 | D166: 0 | E166: 0 | F166: 0 | G166: 0 | H166: 0 | I166: 0 | J166: 11 | K166: 0 | L166: 0 | M166: 0 | N166: 0 | O166: 0
B167: 0 | D167: 0 | E167: 0 | F167: 0 | G167: 0 | H167: 0 | I167: 0 | J167: 24 | K167: 0 | L167: 0 | M167: 0 | N167: 0 | O167: 0
B168: 0 | D168: 0 | E168: 0 | F168: 0 | G168: 0 | H168: 0 | I168: 0 | J168: 12 | K168: 0 | L168: 0 | M168: 0 | N168: 0 | O168: 0
B169: 0 | D169: 0 | E169: 0 | F169: 0 | G169: 0 | H169: 0 | I169: 0 | J169: 18 | K169: 0 | L169: 0 | M169: 0 | N169: 0 | O169: 0
B170: 0 | D170: 0 | E170: 0 | F170: 0 | G170: 0 | H170: 0 | I170: 0 | J170: 10 | K170: 0 | L170: 0 | M170: 0 | N170: 0 | O170: 0
B171: 0 | D171: 0 | E171: 0 | F171: 0 | G171: 0 | H171: 0 | I171: 0 | J171: 15 | K171: 0 | L171: 0 | M171: 0 | N171: 0 | O171: 0
B172: 0 | D172: 0 | E172: 0 | F172: 0 | G172: 0 | H172: 0 | I172: 0 | K172: 0 | L172: 0 | M172: 0 | N172: 0 | O172: 0
B173: 0 | D173: 0 | E173: 0 | F173: 0 | G173: 0 | H173: 0 | I173: 0 | J173: 14 | K173: 0 | L173: 0 | M173: 0 | N173: 0 | O173: 0
B174: 0 | D174: 0 | E174: 0 | F174: 0 | G174: 0 | H174: 0 | I174: 0 | J174: 22 | K174: 0 | L174: 0 | M174: 0 | N174: 0 | O174: 0
B175: 0 | D175: 0 | E175: 0 | F175: 0 | G175: 0 | H175: 0 | I175: 0 | J175: 12 | K175: 0 | L175: 0 | M175: 0 | N175: 0 | O175: 0
B176: 0 | D176: 0 | E176: 0 | F176: 0 | G176: 0 | H176: 0 | I176: 0 | J176: 14 | K176: 0 | L176: 0 | M176: 0 | N176: 0 | O176: 0
B177: 0 | D177: 0 | E177: 0 | F177: 0 | G177: 0 | H177: 0 | I177: 0 | J177: 10 | K177: 0 | L177: 0 | M177: 0 | N177: 0 | O177: 0
B178: 0 | D178: 0 | E178: 0 | F178: 0 | G178: 0 | H178: 0 | I178: 0 | J178: 60 | K178: 0 | L178: 0 | M178: 0 | N178: 0 | O178: 0
B179: 0 | D179: 0 | E179: 0 | F179: 0 | G179: 0 | H179: 0 | I179: 0 | J179: 9 | K179: 0 | L179: 0 | M179: 0 | N179: 0 | O179: 0
B180: 0 | D180: 0 | E180: 0 | F180: 0 | G180: 0 | H180: 0 | I180: 0 | J180: 9 | K180: 0 | L180: 0 | M180: 0 | N180: 0 | O180: 0
B181: 0 | D181: 0 | E181: 0 | F181: 0 | G181: 0 | H181: 0 | I181: 0 | J181: 18 | K181: 0 | L181: 0 | M181: 0 | N181: 0 | O181: 0
B182: 0 | D182: 0 | E182: 0 | F182: 0 | G182: 0 | H182: 0 | I182: 0 | J182: 65 | K182: 0 | L182: 0 | M182: 0 | N182: 0 | O182: 0
B183: 0 | D183: 0 | E183: 0 | F183: 0 | G183: 0 | H183: 0 | I183: 0 | J183: 22 | K183: 0 | L183: 0 | M183: 0 | N183: 0 | O183: 0
B184: 0 | D184: 0 | E184: 0 | F184: 0 | G184: 0 | H184: 0 | I184: 0 | J184: 20 | K184: 0 | L184: 0 | M184: 0 | N184: 0 | O184: 0
B185: 0 | D185: 0 | E185: 0 | F185: 0 | G185: 0 | H185: 0 | I185: 0 | J185: 59 | K185: 0 | L185: 0 | M185: 0 | N185: 0 | O185: 0
B186: 0 | D186: 0 | E186: 0 | F186: 0 | G186: 0 | H186: 0 | I186: 0 | J186: 14 | K186: 0 | L186: 0 | M186: 0 | N186: 0 | O186: 0
B187: 0 | D187: 0 | E187: 0 | F187: 0 | G187: 0 | H187: 0 | I187: 0 | J187: 17 | K187: 0 | L187: 0 | M187: 0 | N187: 0 | O187: 0
B188: 0 | D188: 0 | E188: 0 | F188: 0 | G188: 0 | H188: 0 | I188: 0 | K188: 0 | L188: 0 | M188: 0 | N188: 0 | O188: 0
B189: 0 | D189: 0 | E189: 0 | F189: 0 | G189: 0 | H189: 0 | I189: 0 | J189: 17 | K189: 0 | L189: 0 | M189: 0 | N189: 0 | O189: 0
B190: 0 | D190: 0 | E190: 0 | F190: 0 | G190: 0 | H190: 0 | I190: 0 | J190: 22 | K190: 0 | L190: 0 | M190: 0 | N190: 0 | O190: 0
B191: 0 | D191: 0 | E191: 0 | F191: 0 | G191: 0 | H191: 0 | I191: 0 | J191: 9 | K191: 0 | L191: 0 | M191: 0 | N191: 0 | O191: 0
B192: 0 | D192: 0 | E192: 0 | F192: 0 | G192: 0 | H192: 0 | I192: 0 | J192: 9 | K192: 0 | L192: 0 | M192: 0 | N192: 0 | O192: 0
B193: 0 | D193: 0 | E193: 0 | F193: 0 | G193: 0 | H193: 0 | I193: 0 | K193: 0 | L193: 0 | M193: 0 | N193: 0 | O193: 0
B194: 0 | D194: 0 | E194: 0 | F194: 0 | G194: 0 | H194: 0 | I194: 0 | J194: 84 | K194: 0 | L194: 0 | M194: 0 | N194: 0 | O194: 0
B195: 0 | D195: 0 | E195: 0 | F195: 0 | G195: 0 | H195: 0 | I195: 0 | J195: 9 | K195: 0 | L195: 0 | M195: 0 | N195: 0 | O195: 0
B196: 0 | D196: 0 | E196: 0 | F196: 0 | G196: 0 | H196: 0 | I196: 0 | K196: 0 | L196: 0 | M196: 0 | N196: 0 | O196: 0
B197: 0 | D197: 0 | E197: 0 | F197: 0 | G197: 0 | H197: 0 | I197: 0 | J197: 25 | K197: 0 | L197: 0 | M197: 0 | N197: 0 | O197: 0
B198: 0 | D198: 0 | E198: 0 | F198: 0 | G198: 0 | H198: 0 | I198: 0 | J198: 26 | K198: =IF(D198>0.5,1,0) -> 0 | L198: =+D198-F198 -> 0 | M198: 0 | N198: =+E198-G198 -> 0 | O198: 0
B199: 0 | D199: 0 | E199: 0 | F199: 0 | G199: 0 | H199: 0 | I199: 0 | J199: 17 | K199: 0 | L199: 0 | M199: =IF(OR((L199>=M$3),(L199<=-M$3)),1,0) -> 0 | N199: 0 | O199: 0
B200: 0 | D200: 0 | E200: 0 | F200: 0 | G200: 0 | H200: 0 | I200: 0 | J200: 17 | K200: 0 | L200: 0 | M200: 0 | N200: 0 | O200: 0
B201: 0 | D201: 0 | E201: 0 | F201: 0 | G201: 0 | H201: 0 | I201: 0 | J201: 16 | K201: 0 | L201: 0 | M201: 0 | N201: 0 | O201: 0
... 775 more rows

Sheet Original Sheet
B1: 1/22/2019 | D1: Lutheran Church of the Resurrection
B2: 04:51p | D2: Contributions to a Fund
B4: Contributions to a Fund
B5: Env. Name | E5: Total L.Y. | I5: Total L.Y. | M5: 2 Yrs. Ago | O5: 2 Yrs. Ago | Q5: 3 Yrs. Ago | S5: 3 Yrs. Ago | W5: Age
B7: 0 | E7: 0 | I7: 0 | M7: 0 | O7: 0 | Q7: 0 | S7: 0 | W7: 8
B10: 0 | E10: 0 | I10: 0 | M10: 0 | O10: 0 | Q10: 0 | S10: 0 | W10: 7
B13: 0 | E13: 0 | I13: 0 | M13: 0 | O13: 0 | Q13: 0 | S13: 0
B16: 0 | E16: 0 | I16: 0 | M16: 0 | O16: 0 | Q16: 0 | S16: 0 | W16: 8
B19: 0 | E19: 0 | I19: 0 | M19: 0 | O19: 0 | Q19: 0 | S19: 0 | W19: 8
B22: 0 | E22: 0 | I22: 0 | M22: 0 | O22: 0 | Q22: 0 | S22: 0 | W22: 44
B25: 0 | E25: 0 | I25: 0 | M25: 0 | O25: 0 | Q25: 0 | S25: 0
B28: 0 | E28: 0 | I28: 0 | M28: 0 | O28: 0 | Q28: 0 | S28: 0 | W28: 9
B31: 0 | E31: 0 | I31: 0 | M31: 0 | O31: 0 | Q31: 0 | S31: 0
B34: 0 | E34: 0 | I34: 0 | M34: 0 | O34: 0 | Q34: 0 | S34: 0 | W34: 8
B37: 0 | E37: 0 | I37: 0 | M37: 0 | O37: 0 | Q37: 0 | S37: 0 | W37: 8
B40: 0 | E40: 0 | I40: 0 | M40: 0 | O40: 0 | Q40: 0 | S40: 0 | W40: 18
B43: 0 | E43: 0 | I43: 0 | M43: 0 | O43: 0 | Q43: 0 | S43: 0 | W43: 26
B46: 0 | E46: 0 | I46: 0 | M46: 0 | O46: 0 | Q46: 0 | S46: 0 | W46: 14
B49: 0 | E49: 0 | I49: 0 | M49: 0 | O49: 0 | Q49: 0 | S49: 0 | W49: 26
B52: 0 | E52: 0 | I52: 0 | M52: 0 | O52: 0 | Q52: 0 | S52: 0 | W52: 27
B55: 0 | E55: 0 | I55: 0 | M55: 0 | O55: 0 | Q55: 0 | S55: 0 | W55: 45
B58: 0 | E58: 0 | I58: 0 | M58: 0 | O58: 0 | Q58: 0 | S58: 0 | W58: 8
B61: 0 | E61: 0 | I61: 0 | M61: 0 | O61: 0 | Q61: 0 | S61: 0 | W61: 46
B64: 0 | E64: 0 | I64: 0 | M64: 0 | O64: 0 | Q64: 0 | S64: 0 | W64: 40
B67: 0 | E67: 0 | I67: 0 | M67: 0 | O67: 0 | Q67: 0 | S67: 0 | W67: 29
B70: 0 | E70: 0 | I70: 0 | M70: 0 | O70: 0 | Q70: 0 | S70: 0 | W70: 14
B73: 0 | E73: 0 | I73: 0 | M73: 0 | O73: 0 | Q73: 0 | S73: 0 | W73: 48
B76: 0 | E76: 0 | I76: 0 | M76: 0 | O76: 0 | Q76: 0 | S76: 0 | W76: 67
B79: 0 | E79: 0 | I79: 0 | M79: 0 | O79: 0 | Q79: 0 | S79: 0 | W79: 26
B82: 0 | E82: 0 | I82: 0 | M82: 0 | O82: 0 | Q82: 0 | S82: 0 | W82: 15
B85: 0 | E85: 0 | I85: 0 | M85: 0 | O85: 0 | Q85: 0 | S85: 0 | W85: 18
B88: 0 | E88: 0 | I88: 0 | M88: 0 | O88: 0 | Q88: 0 | S88: 0 | W88: 9
B91: 0 | E91: 0 | I91: 0 | M91: 0 | O91: 0 | Q91: 0 | S91: 0 | W91: 9
B94: 0 | E94: 0 | I94: 0 | M94: 0 | O94: 0 | Q94: 0 | S94: 0 | W94: 85
B97: 0 | E97: 0 | I97: 0 | M97: 0 | O97: 0 | Q97: 0 | S97: 0 | W97: 15
B100: 0 | E100: 0 | I100: 0 | M100: 0 | O100: 0 | Q100: 0 | S100: 0 | W100: 18
B103: 0 | E103: 0 | I103: 0 | M103: 0 | O103: 0 | Q103: 0 | S103: 0 | W103: 9
B106: 0 | E106: 0 | I106: 0 | M106: 0 | O106: 0 | Q106: 0 | S106: 0 | W106: 23
B109: 0 | E109: 0 | I109: 0 | M109: 0 | O109: 0 | Q109: 0 | S109: 0
B112: 0 | E112: 0 | I112: 0 | M112: 0 | O112: 0 | Q112: 0 | S112: 0
B115: 0 | E115: 0 | I115: 0 | M115: 0 | O115: 0 | Q115: 0 | S115: 0 | W115: 18
B118: 0 | E118: 0 | I118: 0 | M118: 0 | O118: 0 | Q118: 0 | S118: 0 | W118: 27
B121: 0 | E121: 0 | I121: 0 | M121: 0 | O121: 0 | Q121: 0 | S121: 0
B124: 0 | E124: 0 | I124: 0 | M124: 0 | O124: 0 | Q124: 0 | S124: 0
B127: 0 | E127: 0 | I127: 0 | M127: 0 | O127: 0 | Q127: 0 | S127: 0 | W127: 9
B130: 0 | E130: 0 | I130: 0 | M130: 0 | O130: 0 | Q130: 0 | S130: 0
B133: 0 | E133: 0 | I133: 0 | M133: 0 | O133: 0 | Q133: 0 | S133: 0 | W133: 43
B136: 0 | E136: 0 | I136: 0 | M136: 0 | O136: 0 | Q136: 0 | S136: 0 | W136: 14
B139: 0 | E139: 0 | I139: 0 | M139: 0 | O139: 0 | Q139: 0 | S139: 0 | W139: 21
B142: 0 | E142: 0 | I142: 0 | M142: 0 | O142: 0 | Q142: 0 | S142: 0 | W142: 23
B145: 0 | E145: 0 | I145: 0 | M145: 0 | O145: 0 | Q145: 0 | S145: 0 | W145: 19
B148: 0 | E148: 0 | I148: 0 | M148: 0 | O148: 0 | Q148: 0 | S148: 0
B151: 0 | E151: 0 | I151: 0 | M151: 0 | O151: 0 | Q151: 0 | S151: 0
B154: 0 | E154: 0 | I154: 0 | M154: 0 | O154: 0 | Q154: 0 | S154: 0 | W154: 14
B157: 0 | E157: 0 | I157: 0 | M157: 0 | O157: 0 | Q157: 0 | S157: 0 | W157: 14
B160: 0 | E160: 0 | I160: 0 | M160: 0 | O160: 0 | Q160: 0 | S160: 0
B163: 0 | E163: 0 | I163: 0 | M163: 0 | O163: 0 | Q163: 0 | S163: 0
B166: 0 | E166: 0 | I166: 0 | M166: 0 | O166: 0 | Q166: 0 | S166: 0 | W166: 11
B169: 0 | E169: 0 | I169: 0 | M169: 0 | O169: 0 | Q169: 0 | S169: 0 | W169: 26
B172: 0 | E172: 0 | I172: 0 | M172: 0 | O172: 0 | Q172: 0 | S172: 0 | W172: 17
B175: 0 | E175: 0 | I175: 0 | M175: 0 | O175: 0 | Q175: 0 | S175: 0 | W175: 20
B178: 0 | E178: 0 | I178: 0 | M178: 0 | O178: 0 | Q178: 0 | S178: 0 | W178: 18
B181: 0 | E181: 0 | I181: 0 | M181: 0 | O181: 0 | Q181: 0 | S181: 0 | W181: 13
B184: 0 | E184: 0 | I184: 0 | M184: 0 | O184: 0 | Q184: 0 | S184: 0 | W184: 31
B187: 0 | E187: 0 | I187: 0 | M187: 0 | O187: 0 | Q187: 0 | S187: 0 | W187: 34
B190: 0 | E190: 0 | I190: 0 | M190: 0 | O190: 0 | Q190: 0 | S190: 0 | W190: 27
B193: 0 | E193: 0 | I193: 0 | M193: 0 | O193: 0 | Q193: 0 | S193: 0 | W193: 23
B196: 0 | E196: 0 | I196: 0 | M196: 0 | O196: 0 | Q196: 0 | S196: 0
B199: 0 | E199: 0 | I199: 0 | M199: 0 | O199: 0 | Q199: 0 | S199: 0 | W199: 16
B202: 0 | E202: 0 | I202: 0 | M202: 0 | O202: 0 | Q202: 0 | S202: 0 | W202: 10
B205: 0 | E205: 0 | I205: 0 | M205: 0 | O205: 0 | Q205: 0 | S205: 0 | W205: 1918
B208: 0 | E208: 0 | I208: 0 | M208: 0 | O208: 0 | Q208: 0 | S208: 0 | W208: 23
B211: 0 | E211: 0 | I211: 0 | M211: 0 | O211: 0 | Q211: 0 | S211: 0 | W211: 32
B214: 0 | E214: 0 | I214: 0 | M214: 0 | O214: 0 | Q214: 0 | S214: 0 | W214: 18
B217: 0 | E217: 0 | I217: 0 | M217: 0 | O217: 0 | Q217: 0 | S217: 0 | W217: 19
B220: 0 | E220: 0 | I220: 0 | M220: 0 | O220: 0 | Q220: 0 | S220: 0 | W220: 25
B223: 0 | E223: 0 | I223: 0 | M223: 0 | O223: 0 | Q223: 0 | S223: 0 | W223: 16
B226: 0 | E226: 0 | I226: 0 | M226: 0 | O226: 0 | Q226: 0 | S226: 0 | W226: 22
B229: 0 | E229: 0 | I229: 0 | M229: 0 | O229: 0 | Q229: 0 | S229: 0 | W229: 17
B232: 0 | E232: 0 | I232: 0 | M232: 0 | O232: 0 | Q232: 0 | S232: 0 | W232: 15
B235: 0 | E235: 0 | I235: 0 | M235: 0 | O235: 0 | Q235: 0 | S235: 0 | W235: 21
B238: 0 | E238: 0 | I238: 0 | M238: 0 | O238: 0 | Q238: 0 | S238: 0 | W238: 19
B241: 0 | E241: 0 | I241: 0 | M241: 0 | O241: 0 | Q241: 0 | S241: 0 | W241: 16
B244: 0 | E244: 0 | I244: 0 | M244: 0 | O244: 0 | Q244: 0 | S244: 0 | W244: 6
B247: 0 | E247: 0 | I247: 0 | M247: 0 | O247: 0 | Q247: 0 | S247: 0 | W247: 10
B250: 0 | E250: 0 | I250: 0 | M250: 0 | O250: 0 | Q250: 0 | S250: 0 | W250: 18
B253: 0 | E253: 0 | I253: 0 | M253: 0 | O253: 0 | Q253: 0 | S253: 0
B256: 0 | E256: 0 | I256: 0 | M256: 0 | O256: 0 | Q256: 0 | S256: 0 | W256: 18
B259: 0 | E259: 0 | I259: 0 | M259: 0 | O259: 0 | Q259: 0 | S259: 0
B262: 0 | E262: 0 | I262: 0 | M262: 0 | O262: 0 | Q262: 0 | S262: 0 | W262: 8
B265: 0 | E265: 0 | I265: 0 | M265: 0 | O265: 0 | Q265: 0 | S265: 0
B268: 0 | E268: 0 | I268: 0 | M268: 0 | O268: 0 | Q268: 0 | S268: 0
B271: 0 | E271: 0 | I271: 0 | M271: 0 | O271: 0 | Q271: 0 | S271: 0
B274: 0 | E274: 0 | I274: 0 | M274: 0 | O274: 0 | Q274: 0 | S274: 0 | W274: 7
B277: 0 | E277: 0 | I277: 0 | M277: 0 | O277: 0 | Q277: 0 | S277: 0
B280: 0 | E280: 0 | I280: 0 | M280: 0 | O280: 0 | Q280: 0 | S280: 0
B283: 0 | E283: 0 | I283: 0 | M283: 0 | O283: 0 | Q283: 0 | S283: 0 | W283: 21
B286: 0 | E286: 0 | I286: 0 | M286: 0 | O286: 0 | Q286: 0 | S286: 0
B289: 0 | E289: 0 | I289: 0 | M289: 0 | O289: 0 | Q289: 0 | S289: 0 | W289: 45
B292: 0 | E292: 0 | I292: 0 | M292: 0 | O292: 0 | Q292: 0 | S292: 0 | W292: 7
B295: 0 | E295: 0 | I295: 0 | M295: 0 | O295: 0 | Q295: 0 | S295: 0 | W295: 13
B298: 0 | E298: 0 | I298: 0 | M298: 0 | O298: 0 | Q298: 0 | S298: 0 | W298: 11
B301: 0 | E301: 0 | I301: 0 | M301: 0 | O301: 0 | Q301: 0 | S301: 0 | W301: 26
B304: 0 | E304: 0 | I304: 0 | M304: 0 | O304: 0 | Q304: 0 | S304: 0 | W304: 9
B307: 0 | E307: 0 | I307: 0 | M307: 0 | O307: 0 | Q307: 0 | S307: 0 | W307: 7
B310: 0 | E310: 0 | I310: 0 | M310: 0 | O310: 0 | Q310: 0 | S310: 0 | W310: 28
B313: 0 | E313: 0 | I313: 0 | M313: 0 | O313: 0 | Q313: 0 | S313: 0 | W313: 29
B316: 0 | E316: 0 | I316: 0 | M316: 0 | O316: 0 | Q316: 0 | S316: 0 | W316: 11
B319: 0 | E319: 0 | I319: 0 | M319: 0 | O319: 0 | Q319: 0 | S319: 0 | W319: 23
B322: 0 | E322: 0 | I322: 0 | M322: 0 | O322: 0 | Q322: 0 | S322: 0 | W322: 22
B325: 0 | E325: 0 | I325: 0 | M325: 0 | O325: 0 | Q325: 0 | S325: 0 | W325: 58
B328: 0 | E328: 0 | I328: 0 | M328: 0 | O328: 0 | Q328: 0 | S328: 0 | W328: 8
B331: 0 | E331: 0 | I331: 0 | M331: 0 | O331: 0 | Q331: 0 | S331: 0 | W331: 49
B334: 0 | E334: 0 | I334: 0 | M334: 0 | O334: 0 | Q334: 0 | S334: 0 | W334: 37
B337: 0 | E337: 0 | I337: 0 | M337: 0 | O337: 0 | Q337: 0 | S337: 0 | W337: 103
B340: 0 | E340: 0 | I340: 0 | M340: 0 | O340: 0 | Q340: 0 | S340: 0
B343: 0 | E343: 0 | I343: 0 | M343: 0 | O343: 0 | Q343: 0 | S343: 0
B346: 0 | E346: 0 | I346: 0 | M346: 0 | O346: 0 | Q346: 0 | S346: 0 | W346: 19
B349: 0 | E349: 0 | I349: 0 | M349: 0 | O349: 0 | Q349: 0 | S349: 0
B352: 0 | E352: 0 | I352: 0 | M352: 0 | O352: 0 | Q352: 0 | S352: 0 | W352: 15
B355: 0 | E355: 0 | I355: 0 | M355: 0 | O355: 0 | Q355: 0 | S355: 0 | W355: 11
B358: 0 | E358: 0 | I358: 0 | M358: 0 | O358: 0 | Q358: 0 | S358: 0 | W358: 11
B361: 0 | E361: 0 | I361: 0 | M361: 0 | O361: 0 | Q361: 0 | S361: 0 | W361: 16
B364: 0 | E364: 0 | I364: 0 | M364: 0 | O364: 0 | Q364: 0 | S364: 0 | W364: 14
B367: 0 | E367: 0 | I367: 0 | M367: 0 | O367: 0 | Q367: 0 | S367: 0
B370: 0 | E370: 0 | I370: 0 | M370: 0 | O370: 0 | Q370: 0 | S370: 0 | W370: 21
B373: 0 | E373: 0 | I373: 0 | M373: 0 | O373: 0 | Q373: 0 | S373: 0 | W373: 13
B376: 0 | E376: 0 | I376: 0 | M376: 0 | O376: 0 | Q376: 0 | S376: 0 | W376: 11
B379: 0 | E379: 0 | I379: 0 | M379: 0 | O379: 0 | Q379: 0 | S379: 0 | W379: 11
B382: 0 | E382: 0 | I382: 0 | M382: 0 | O382: 0 | Q382: 0 | S382: 0
B385: 0 | E385: 0 | I385: 0 | M385: 0 | O385: 0 | Q385: 0 | S385: 0 | W385: 26
B388: 0 | E388: 0 | I388: 0 | M388: 0 | O388: 0 | Q388: 0 | S388: 0 | W388: 18
B391: 0 | E391: 0 | I391: 0 | M391: 0 | O391: 0 | Q391: 0 | S391: 0 | W391: 11
B394: 0 | E394: 0 | I394: 0 | M394: 0 | O394: 0 | Q394: 0 | S394: 0 | W394: 10
B397: 0 | E397: 0 | I397: 0 | M397: 0 | O397: 0 | Q397: 0 | S397: 0
B400: 0 | E400: 0 | I400: 0 | M400: 0 | O400: 0 | Q400: 0 | S400: 0 | W400: 11
B403: 0 | E403: 0 | I403: 0 | M403: 0 | O403: 0 | Q403: 0 | S403: 0
B406: 0 | E406: 0 | I406: 0 | M406: 0 | O406: 0 | Q406: 0 | S406: 0 | W406: 17
B409: 0 | E409: 0 | I409: 0 | M409: 0 | O409: 0 | Q409: 0 | S409: 0 | W409: 20
B412: 0 | E412: 0 | I412: 0 | M412: 0 | O412: 0 | Q412: 0 | S412: 0
B415: 0 | E415: 0 | I415: 0 | M415: 0 | O415: 0 | Q415: 0 | S415: 0
B418: 0 | E418: 0 | I418: 0 | M418: 0 | O418: 0 | Q418: 0 | S418: 0 | W418: 19
B421: 0 | E421: 0 | I421: 0 | M421: 0 | O421: 0 | Q421: 0 | S421: 0 | W421: 15
B424: 0 | E424: 0 | I424: 0 | M424: 0 | O424: 0 | Q424: 0 | S424: 0 | W424: 40
B427: 0 | E427: 0 | I427: 0 | M427: 0 | O427: 0 | Q427: 0 | S427: 0 | W427: 14
B430: 0 | E430: 0 | I430: 0 | M430: 0 | O430: 0 | Q430: 0 | S430: 0
B433: 0 | E433: 0 | I433: 0 | M433: 0 | O433: 0 | Q433: 0 | S433: 0
B436: 0 | E436: 0 | I436: 0 | M436: 0 | O436: 0 | Q436: 0 | S436: 0
B439: 0 | E439: 0 | I439: 0 | M439: 0 | O439: 0 | Q439: 0 | S439: 0
B442: 0 | E442: 0 | I442: 0 | M442: 0 | O442: 0 | Q442: 0 | S442: 0 | W442: 22
B445: 0 | E445: 0 | I445: 0 | M445: 0 | O445: 0 | Q445: 0 | S445: 0
B448: 0 | E448: 0 | I448: 0 | M448: 0 | O448: 0 | Q448: 0 | S448: 0 | W448: 22
B451: 0 | E451: 0 | I451: 0 | M451: 0 | O451: 0 | Q451: 0 | S451: 0 | W451: 19
B454: 0 | E454: 0 | I454: 0 | M454: 0 | O454: 0 | Q454: 0 | S454: 0 | W454: 12
B457: 0 | E457: 0 | I457: 0 | M457: 0 | O457: 0 | Q457: 0 | S457: 0 | W457: 17
B460: 0 | E460: 0 | I460: 0 | M460: 0 | O460: 0 | Q460: 0 | S460: 0 | W460: 23
B463: 0 | E463: 0 | I463: 0 | M463: 0 | O463: 0 | Q463: 0 | S463: 0 | W463: 20
B466: 0 | E466: 0 | I466: 0 | M466: 0 | O466: 0 | Q466: 0 | S466: 0
B469: 0 | E469: 0 | I469: 0 | M469: 0 | O469: 0 | Q469: 0 | S469: 0 | W469: 11
B472: 0 | E472: 0 | I472: 0 | M472: 0 | O472: 0 | Q472: 0 | S472: 0 | W472: 21
B475: 0 | E475: 0 | I475: 0 | M475: 0 | O475: 0 | Q475: 0 | S475: 0 | W475: 21
B478: 0 | E478: 0 | I478: 0 | M478: 0 | O478: 0 | Q478: 0 | S478: 0 | W478: 25
B481: 0 | E481: 0 | I481: 0 | M481: 0 | O481: 0 | Q481: 0 | S481: 0 | W481: 11
B484: 0 | E484: 0 | I484: 0 | M484: 0 | O484: 0 | Q484: 0 | S484: 0 | W484: 13
B487: 0 | E487: 0 | I487: 0 | M487: 0 | O487: 0 | Q487: 0 | S487: 0
B490: 0 | E490: 0 | I490: 0 | M490: 0 | O490: 0 | Q490: 0 | S490: 0 | W490: 11
B493: 0 | E493: 0 | I493: 0 | M493: 0 | O493: 0 | Q493: 0 | S493: 0 | W493: 24
B496: 0 | E496: 0 | I496: 0 | M496: 0 | O496: 0 | Q496: 0 | S496: 0 | W496: 12
B499: 0 | E499: 0 | I499: 0 | M499: 0 | O499: 0 | Q499: 0 | S499: 0 | W499: 18
B502: 0 | E502: 0 | I502: 0 | M502: 0 | O502: 0 | Q502: 0 | S502: 0 | W502: 10
B505: 0 | E505: 0 | I505: 0 | M505: 0 | O505: 0 | Q505: 0 | S505: 0 | W505: 15
B508: 0 | E508: 0 | I508: 0 | M508: 0 | O508: 0 | Q508: 0 | S508: 0
B511: 0 | E511: 0 | I511: 0 | M511: 0 | O511: 0 | Q511: 0 | S511: 0 | W511: 14
B514: 0 | E514: 0 | I514: 0 | M514: 0 | O514: 0 | Q514: 0 | S514: 0 | W514: 22
B517: 0 | E517: 0 | I517: 0 | M517: 0 | O517: 0 | Q517: 0 | S517: 0 | W517: 12
B520: 0 | E520: 0 | I520: 0 | M520: 0 | O520: 0 | Q520: 0 | S520: 0 | W520: 14
B523: 0 | E523: 0 | I523: 0 | M523: 0 | O523: 0 | Q523: 0 | S523: 0 | W523: 10
B526: 0 | E526: 0 | I526: 0 | M526: 0 | O526: 0 | Q526: 0 | S526: 0 | W526: 60
B529: 0 | E529: 0 | I529: 0 | M529: 0 | O529: 0 | Q529: 0 | S529: 0 | W529: 9
B532: 0 | E532: 0 | I532: 0 | M532: 0 | O532: 0 | Q532: 0 | S532: 0 | W532: 9
B535: 0 | E535: 0 | I535: 0 | M535: 0 | O535: 0 | Q535: 0 | S535: 0 | W535: 18
B538: 0 | E538: 0 | I538: 0 | M538: 0 | O538: 0 | Q538: 0 | S538: 0 | W538: 65
B541: 0 | E541: 0 | I541: 0 | M541: 0 | O541: 0 | Q541: 0 | S541: 0 | W541: 22
B544: 0 | E544: 0 | I544: 0 | M544: 0 | O544: 0 | Q544: 0 | S544: 0 | W544: 20
B547: 0 | E547: 0 | I547: 0 | M547: 0 | O547: 0 | Q547: 0 | S547: 0 | W547: 59
B550: 0 | E550: 0 | I550: 0 | M550: 0 | O550: 0 | Q550: 0 | S550: 0 | W550: 14
B553: 0 | E553: 0 | I553: 0 | M553: 0 | O553: 0 | Q553: 0 | S553: 0 | W553: 17
B556: 0 | E556: 0 | I556: 0 | M556: 0 | O556: 0 | Q556: 0 | S556: 0
B559: 0 | E559: 0 | I559: 0 | M559: 0 | O559: 0 | Q559: 0 | S559: 0 | W559: 17
B562: 0 | E562: 0 | I562: 0 | M562: 0 | O562: 0 | Q562: 0 | S562: 0 | W562: 22
B565: 0 | E565: 0 | I565: 0 | M565: 0 | O565: 0 | Q565: 0 | S565: 0 | W565: 9
B568: 0 | E568: 0 | I568: 0 | M568: 0 | O568: 0 | Q568: 0 | S568: 0 | W568: 9
B571: 0 | E571: 0 | I571: 0 | M571: 0 | O571: 0 | Q571: 0 | S571: 0
B574: 0 | E574: 0 | I574: 0 | M574: 0 | O574: 0 | Q574: 0 | S574: 0 | W574: 84
B577: 0 | E577: 0 | I577: 0 | M577: 0 | O577: 0 | Q577: 0 | S577: 0 | W577: 9
B580: 0 | E580: 0 | I580: 0 | M580: 0 | O580: 0 | Q580: 0 | S580: 0
B583: 0 | E583: 0 | I583: 0 | M583: 0 | O583: 0 | Q583: 0 | S583: 0 | W583: 25
B586: 0 | E586: 0 | I586: 0 | M586: 0 | O586: 0 | Q586: 0 | S586: 0 | W586: 26
B589: 0 | E589: 0 | I589: 0 | M589: 0 | O589: 0 | Q589: 0 | S589: 0 | W589: 17
B592: 0 | E592: 0 | I592: 0 | M592: 0 | O592: 0 | Q592: 0 | S592: 0 | W592: 17
... 2589 more rows

Sheet Sheet1
A2: Analysis of Fund 1
A3: Explaination of Report: This report identifies any family unit that gave $500 or more difference (positive or negative) from 2017 to 2018. It is sorted from largest decrease in Fund 1 to largest increase in Fund 1. The variance in Total Contributions from 2017 to 2018 is also included.
A6: General Fund 1:
A7: ="A total of "&Database!K976&" family units gave to Fund 1 in 2018 totaling $"&ROUND(Database!D976,0)&"." -> A total of 266 family units gave to Fund 1 in 2018 totaling $491032.
A10: Analysis Highlights: 28 giving familes decreased their giving in Fund 1 and also in total. 22 giving familes increased their Fund 1 giving and also in total. 1 family decreased contributions for Fund 1 and increased in total meaning shifted money from Fund 1 to other funds and increased those other funds as well. That family is bolded.
B14: Env # | C14: Name | D14: Fund 1 2018 vs 2017 | E14: Total Funds 2018 vs 2017 | F14: Some comments
A15: 1 | B15: 280 | C15: Nottleson, Neal and Gerry | D15: -13000 | E15: -7725 | F15: Some shift to another fund but mostly a significant decrease in total
A16: 2 | B16: 10721 | C16: Navarro, Janice and Rene’ | D16: -3100 | E16: -3214.2
A17: 3 | B17: 144 | C17: Christianson, Janet | D17: -2750 | E17: -2780
A18: 4 | B18: 260 | C18: Miller Sr., Paul and Rita | D18: -1825 | E18: -1865
A19: 5 | B19: 217 | C19: Katt, Louise | D19: -1690 | E19: -1860
A20: 6 | B20: 121 | C20: Bauer, Jane | D20: -1525 | E20: -1685
A21: 7 | B21: 106 | C21: Amerson, Joann | D21: -1505 | E21: -2355 | F21: Also decrease in other funds.
A22: 8 | B22: 294 | C22: Peuschold, Dan and Kim | D22: -1500 | E22: -1500
A23: 9 | B23: 120 | C23: Bartels, Gary and Mary | D23: -1400 | E23: -1480
A24: 10 | B24: 152 | C24: D’Amato, Laura | D24: -1380 | E24: -1380
A25: 11 | B25: 169 | C25: Faas, Bob | D25: -1325 | E25: -1325
A26: 12 | B26: 204 | C26: Honsberger, Neil and Linda | D26: -1300 | E26: -1350
A27: 13 | B27: 240 | C27: Kupper Jr., Bernie | D27: -1210 | E27: -1210
A28: 14 | B28: 268 | C28: Monson, Jared | D28: -1000 | E28: -1000
A29: 15 | B29: 110 | C29: Anderson, Jeanne | D29: -900 | E29: -2000 | F29: Also decrease in other funds.
A30: 16 | B30: 329 | C30: Schulz, Dave and Arlene | D30: -840 | E30: -431 | F30: Some shift to another fund combined with a overall decrease
A31: 17 | B31: 175 | C31: Frayer, Sherry | D31: -765 | E31: -760
A32: 18 | B32: 104 | C32: Alton, Del and Shirley | D32: -671 | E32: -593
A33: 19 | B33: 358 | C33: Tuttle, Barb | D33: -650 | E33: -578 | F33: Some shift to another fund combined with an overall decrease
A34: 20 | B34: 348 | C34: Svendsen, Ray | D34: -645 | E34: -645
A35: 21 | B35: 368 | C35: Walquist, Peter and Susan | D35: -635 | E35: -885 | F35: Also decrease in other funds.
A36: 22 | B36: 349 | C36: Swiden, Gary and Carol | D36: -625 | E36: -430 | F36: Some shit to another fund combined with an overall decrease
A37: 23 | B37: 129 | C37: Bidstrup, Dave and Betty | D37: -600 | E37: -625
A38: 24 | B38: 207 | C38: Jacobson, Fred and Lynette | D38: -600 | E38: 1000 | F38: Shift to other funds with increase overall
A39: 25 | B39: 216 | C39: Kangas, Dale and Mary Ann | D39: -595 | E39: -645
A40: 26 | B40: 354 | C40: Thorson, Jo | D40: -560 | E40: -690
A41: 27 | B41: 237 | C41: Kron, Cory and Becky | D41: -530 | E41: -537
A42: 28 | B42: 190 | C42: Hansen, Glenn and Renee | D42: -500 | E42: -400 | F42: Some shit to another fund combined with an overall decrease
A43: 29 | B43: 225 | C43: Klein, Pat | D43: -500 | E43: -480
A44: 30 | B44: 10657 | C44: Krueger, Leah | D44: 500 | E44: 2859
A45: 31 | B45: 10660 | C45: La Duke, Renee | D45: 500 | E45: 600
A46: 32 | B46: 212 | C46: Jensen, Carol | D46: 500 | E46: 200
A47: 33 | B47: 258 | C47: McKean, Ken and Pattie | D47: 500 | E47: 500
A48: 34 | B48: 359 | C48: Vacek, Calvin and Luann | D48: 500 | E48: 565
A49: 35 | B49: 383 | C49: Zirkelbach, Kevin and Jody | D49: 500 | E49: 300
A50: 36 | B50: 295 | C50: Pfeffer, Julie | D50: 510 | E50: 445
A51: 37 | B51: 134 | C51: Blickle, John and Barbara | D51: 515 | E51: 508.8
A52: 38 | B52: 10906 | C52: Kisley, Randy | D52: 540 | E52: 540
A53: 39 | B53: 318 | C53: Rossmann, Paul and Dori | D53: 550 | E53: 400
A54: 40 | B54: 170 | C54: Fehl, Ken and Mary Ann | D54: 600 | E54: 990
A55: 41 | B55: 390 | C55: Masko, Judy | D55: 720 | E55: 740
A56: 42 | B56: 367 | C56: Voll, Ron and Lynda | D56: 950 | E56: 856
A57: 43 | B57: 10723 | C57: Nelson, Earl | D57: 1000 | E57: 3950
A58: 44 | B58: 362 | C58: VanderLeest, Don and Inge | D58: 1100 | E58: 1110
A59: 45 | B59: 388 | C59: Kroll, Bill and Nancy | D59: 1300 | E59: 1415
A60: 46 | B60: 293 | C60: Petrach, Chuck and Rachel | D60: 1350 | E60: 1500
A61: 47 | B61: 386 | C61: Melzer, Charlene | D61: 1550 | E61: 1950
A62: 48 | B62: 209 | C62: Jacobson, Steve and Dawn | D62: 2000 | E62: 1000
A63: 49 | B63: 155 | C63: David, Bill and Judith | D63: 2075 | E63: 1990.02
A64: 50 | B64: 10907 | C64: Pahl, Karen and Jeff | D64: 2475 | E64: 2525
A65: 51 | B65: 123 | C65: Baylon, Carol | D65: 4950 | E65: 5661
C66: Various changes below $500 of fund 1 | D66: =+Database!L976-SUM(D15:D65) -> -2040.34 | E66: =+Database!N976-SUM(E15:E65) -> 5159.02
C67: TOTAL | D67: =SUM(D15:D66) -> -20981.34 | E67: =SUM(E15:E66) -> -3664.36
